Workbook

Sheet Setup
A1: Select what day our week begins on. This will change your week numbers on the "Daily Scores" tab. | C1: Type
A2: Day Your week begins | B2: Monday | C2: =VLOOKUP(B2,H:K,4,FALSE) -> 2 | H2: Day week begins on | I2: Day week ends on | J2: System | K2: type
A3: Day Your Week ends | B3: =IFERROR(VLOOKUP(B2,H:I,2,FALSE),"---") -> Sunday | H3: Sunday | I3: Saturday | J3: 1 | K3: 1 or omitted
H4: Monday | I4: Sunday | J4: 1 | K4: 2
H5: Tuesday | I5: Monday | J5: 1 | K5: 12
A6: A Note on Averages | H6: Wednesday | I6: Tuesday | J6: 1 | K6: 13
A7: Weighted Average | B7: The sum of your actual points divided by the sum of your possible points | D7: This method treats days with more points as essentially worth more. A day where you got 20 of 25 points counts for more than a day where you got 12 of 15 points. | H7: Thursday | I7: Wednesday | J7: 1 | K7: 14
A8: Unweighted Average | B8: The average of your scores, regardless of possible or actual points. | D8: This method treats days with few points the same as days with many points. So a day where you got 12 of 15 points is worth exactly the same as a day where you got 20 out of 25 points. | H8: Friday | I8: Thursday | J8: 1 | K8: 15
H9: Saturday | I9: Friday | J9: 1 | K9: 16
A10: Extra Credit Points
A11: If you choose to, you can add extra credit points to your score on certain days. There would be items that drop in, and were not on your original card, but are important enough that you believe your work on them should count toward your score. Click the link to the right to understand how extra credit works with your score calculation. | D11: Guide to Extra Credit Points (with formulas)

Sheet Today Card
B1: <----------- Click the button to the left to start a new day (it will appear on top of the current day's card)
B2: Date
A3: Task # | B3: Task Description | C3: Half done | D3: Half done | E3: Possible Points | F3: Actual Points | G3: min | H3: max
A4: 1 | B4: Verb | Noun | Elaboration | C4: FALSE | D4: FALSE | E4: =IF(ISNUMBER(A4),(MAX(INDIRECT(G4):INDIRECT(H4))+1)-A4,IF(ISTEXT(A4),"---"," ")) -> 6 | F4: =IF(ISNUMBER(E4),(COUNTIFS(C4:D4,TRUE)*0.5*E4),IF(E4="---",IF(AND(MAX(INDIRECT(G4):INDIRECT(H4))>5,COUNTIFS(C4:D4,TRUE)>1),1,IF(COUNTIFS(C4:D4,TRUE)>1,"+.05","---"))," ")) -> 0 | G4: =ADDRESS(ROW(A4),1,4) -> A4 | H4: =(ADDRESS(ROW(A4)+9,1,4)) -> A13
A5: 2 | C5: FALSE | D5: FALSE | E5: =IF(ISNUMBER(A5),(MAX(INDIRECT(G5):INDIRECT(H5))+1)-A5,IF(ISTEXT(A5),"---"," ")) -> 5 | F5: =IF(ISNUMBER(E5),(COUNTIFS(C5:D5,TRUE)*0.5*E5),IF(E5="---",IF(AND(MAX(INDIRECT(G5):INDIRECT(H5))>5,COUNTIFS(C5:D5,TRUE)>1),1,IF(COUNTIFS(C5:D5,TRUE)>1,"+.05","---"))," ")) -> 0 | G5: =G4 -> A4 | H5: A13
A6: 3 | C6: FALSE | D6: FALSE | E6: =IF(ISNUMBER(A6),(MAX(INDIRECT(G6):INDIRECT(H6))+1)-A6,IF(ISTEXT(A6),"---"," ")) -> 4 | F6: =IF(ISNUMBER(E6),(COUNTIFS(C6:D6,TRUE)*0.5*E6),IF(E6="---",IF(AND(MAX(INDIRECT(G6):INDIRECT(H6))>5,COUNTIFS(C6:D6,TRUE)>1),1,IF(COUNTIFS(C6:D6,TRUE)>1,"+.05","---"))," ")) -> 0 | G6: =G5 -> A4 | H6: A13
A7: 4 | C7: FALSE | D7: FALSE | E7: =IF(ISNUMBER(A7),(MAX(INDIRECT(G7):INDIRECT(H7))+1)-A7,IF(ISTEXT(A7),"---"," ")) -> 3 | F7: =IF(ISNUMBER(E7),(COUNTIFS(C7:D7,TRUE)*0.5*E7),IF(E7="---",IF(AND(MAX(INDIRECT(G7):INDIRECT(H7))>5,COUNTIFS(C7:D7,TRUE)>1),1,IF(COUNTIFS(C7:D7,TRUE)>1,"+.05","---"))," ")) -> 0 | G7: =G6 -> A4 | H7: A13
A8: 5 | C8: FALSE | D8: FALSE | E8: =IF(ISNUMBER(A8),(MAX(INDIRECT(G8):INDIRECT(H8))+1)-A8,IF(ISTEXT(A8),"---"," ")) -> 2 | F8: =IF(ISNUMBER(E8),(COUNTIFS(C8:D8,TRUE)*0.5*E8),IF(E8="---",IF(AND(MAX(INDIRECT(G8):INDIRECT(H8))>5,COUNTIFS(C8:D8,TRUE)>1),1,IF(COUNTIFS(C8:D8,TRUE)>1,"+.05","---"))," ")) -> 0 | G8: =G7 -> A4 | H8: A13
A9: 6 | C9: FALSE | D9: FALSE | E9: =IF(ISNUMBER(A9),(MAX(INDIRECT(G9):INDIRECT(H9))+1)-A9,IF(ISTEXT(A9),"---"," ")) -> 1 | F9: =IF(ISNUMBER(E9),(COUNTIFS(C9:D9,TRUE)*0.5*E9),IF(E9="---",IF(AND(MAX(INDIRECT(G9):INDIRECT(H9))>5,COUNTIFS(C9:D9,TRUE)>1),1,IF(COUNTIFS(C9:D9,TRUE)>1,"+.05","---"))," ")) -> 0 | G9: =G8 -> A4 | H9: A13
A10: A | C10: FALSE | D10: FALSE | E10: =IF(ISNUMBER(A10),(MAX(INDIRECT(G10):INDIRECT(H10))+1)-A10,IF(ISTEXT(A10),"---"," ")) -> --- | F10: =IF(ISNUMBER(E10),(COUNTIFS(C10:D10,TRUE)*0.5*E10),IF(E10="---",IF(AND(MAX(INDIRECT(G10):INDIRECT(H10))>5,COUNTIFS(C10:D10,TRUE)>1),1,IF(COUNTIFS(C10:D10,TRUE)>1,"+.05","---"))," ")) -> --- | G10: =G9 -> A4 | H10: A13
A11: B | C11: FALSE | D11: FALSE | E11: =IF(ISNUMBER(A11),(MAX(INDIRECT(G11):INDIRECT(H11))+1)-A11,IF(ISTEXT(A11),"---"," ")) -> --- | F11: =IF(ISNUMBER(E11),(COUNTIFS(C11:D11,TRUE)*0.5*E11),IF(E11="---",IF(AND(MAX(INDIRECT(G11):INDIRECT(H11))>5,COUNTIFS(C11:D11,TRUE)>1),1,IF(COUNTIFS(C11:D11,TRUE)>1,"+.05","---"))," ")) -> --- | G11: =G10 -> A4 | H11: A13
C12: FALSE | D12: FALSE | E12: =IF(ISNUMBER(A12),(MAX(INDIRECT(G12):INDIRECT(H12))+1)-A12,IF(ISTEXT(A12),"---"," ")) ->  | F12: =IF(ISNUMBER(E12),(COUNTIFS(C12:D12,TRUE)*0.5*E12),IF(E12="---",IF(AND(MAX(INDIRECT(G12):INDIRECT(H12))>5,COUNTIFS(C12:D12,TRUE)>1),1,IF(COUNTIFS(C12:D12,TRUE)>1,"+.05","---"))," ")) ->  | G12: =G11 -> A4 | H12: A13
C13: FALSE | D13: FALSE | E13: =IF(ISNUMBER(A13),(MAX(INDIRECT(G13):INDIRECT(H13))+1)-A13," ") ->  | F13: =IF(ISNUMBER(E13),(COUNTIFS(C13:D13,TRUE)*0.5*E13),IF(E13="---",IF(AND(MAX(INDIRECT(G13):INDIRECT(H13))>5,COUNTIFS(C13:D13,TRUE)>1),1,IF(COUNTIFS(C13:D13,TRUE)>1,"+.05","---"))," ")) ->  | G13: =G12 -> A4 | H13: A13
A14: Totals | C14: =(F14/E14)+(COUNTIFS(F4:F13,"+0.05")*0.05) -> 0 | E14: =(MAX(A4:A12)*(MAX(A4:A12)+1)/2) -> 21 | F14: =SUM(F4:F13) -> 0 | G14: =IF(COUNTIFS(F4:F13,"+.05")>0,"+"," ") -> 

Sheet Daily Scores
A1: Year | B1: Week | C1: Day | D1: Date | E1: Possible | F1: Actual | G1: Score | H1: Notes | I1: Weighted Running Avg | J1: =SUM(F2:F629)/SUM(E2:E629) -> 0.825 | K1: Unweighted Running Avg | L1: =AVERAGE(G2:G629) -> 0.808110119
A2: =YEAR(D2) -> 2021 | B2: =WEEKNUM(D2,16) -> 51 | C2: Saturday | D2: 2021-12-11 | E2: 15 | F2: 13 | G2: =F2/E2 -> 0.8666666667 | H2: Notes on how the day went. Reflect and see what you learned, how you felt, etc.
A3: 2021 | B3: 51 | C3: Sunday | D3: 2021-12-12 | E3: 15 | F3: 12 | G3: 0.8
A4: 2021 | B4: 51 | C4: Monday | D4: 2021-12-13 | E4: 21 | F4: 19 | G4: 0.9047619048
A5: 2021 | B5: 51 | C5: Tuesday | D5: 2021-12-14 | E5: 21 | F5: 19 | G5: 0.9047619048
A6: 2021 | B6: 51 | C6: Wednesday | D6: 2021-12-15 | E6: 28 | F6: 22 | G6: 0.7857142857
A7: 2021 | B7: 51 | C7: Thursday | D7: 2021-12-16 | E7: 28 | F7: 20.5 | G7: 0.7321428571
A8: 2021 | B8: 51 | C8: Friday | D8: 2021-12-17 | E8: 6 | F8: 2 | G8: 0.3333333333
A9: 2021 | B9: 52 | C9: Saturday | D9: 2021-12-18 | E9: 10 | F9: =G9*E9 -> 6.5 | G9: =(5/E9)+(3*0.05) -> 0.65
A10: 2021 | B10: 52 | C10: Sunday | D10: 2021-12-19 | E10: 15 | F10: 15 | G10: =F10/E10 -> 1
A11: 2021 | B11: 52 | C11: Monday | D11: 2021-12-20 | E11: 10 | F11: 10 | G11: 1
A12: 2021 | B12: 52 | C12: Tuesday | D12: 2021-12-21 | E12: 15 | F12: =G12*E12 -> 9.75 | G12: =(9/E12)+0.05 -> 0.65
A13: 2021 | B13: 52 | C13: Wednesday | D13: 2021-12-22 | E13: 15 | F13: 10.5 | G13: =F13/E13 -> 0.7
A14: 2021 | B14: 52 | C14: Thursday | D14: 2021-12-23 | H14: Day off
A15: 2021 | B15: 52 | C15: Friday | D15: 2021-12-24 | E15: 15 | F15: 14 | G15: =F15/E15 -> 0.9333333333
A16: 2021 | B16: 53 | C16: Saturday | D16: 2021-12-25 | H16: Day off
A17: 2021 | B17: 53 | C17: Sunday | D17: 2021-12-26 | E17: 10 | F17: 9 | G17: =F17/E17 -> 0.9
A18: 2021 | B18: 53 | C18: Monday | D18: 2021-12-27 | E18: 15 | F18: =G18*E18 -> 12.25 | G18: =(11.5/15)+0.05 -> 0.8166666667
A19: 2021 | B19: 53 | C19: Tuesday | D19: 2021-12-28 | E19: 21 | F19: 20 | G19: =F19/E19 -> 0.9523809524
A20: 2021 | B20: 53 | C20: Wednesday | D20: 2021-12-29
A21: 2021 | B21: 53 | C21: Thursday | D21: 2021-12-30
A22: 2021 | B22: 53 | C22: Friday | D22: 2021-12-31
A23: 2022 | B23: 1 | C23: Saturday | D23: 2022-01-01

Sheet Weekly Reflection
A1: Year | B1: Week | C1: Weighted Avg. | D1: Unweighted Avg. | E1: Change | F1: Week Notes & What Did I Learn About Myself this Week? | G1: Why the change? Good or bad | H1: What should I do in the coming week based on this?
A2: 2021 | B2: 51 | C2: =SUMIFS('Daily Scores'!F:F,'Daily Scores'!B:B,B2)/SUMIFS('Daily Scores'!E:E,'Daily Scores'!B:B,B2) -> 0.802238806 | D2: =AVERAGEIFS('Daily Scores'!G:G,'Daily Scores'!B:B,B2,'Daily Scores'!A:A,A2) -> 0.7610544218 | E2: ---
A3: 2021 | B3: 52 | C3: =SUMIFS('Daily Scores'!F:F,'Daily Scores'!B:B,B3)/SUMIFS('Daily Scores'!E:E,'Daily Scores'!B:B,B3) -> 0.821875 | D3: =AVERAGEIFS('Daily Scores'!G:G,'Daily Scores'!B:B,B3,'Daily Scores'!A:A,A3) -> 0.8222222222 | E3: =(C3-C2)/C2 -> 0.02447674419
A4: 2021 | B4: 53 | C4: =SUMIFS('Daily Scores'!F:F,'Daily Scores'!B:B,B4)/SUMIFS('Daily Scores'!E:E,'Daily Scores'!B:B,B4) -> 0.8967391304 | D4: =AVERAGEIFS('Daily Scores'!G:G,'Daily Scores'!B:B,B4,'Daily Scores'!A:A,A4) -> 0.8896825397 | E4: 0.09108943627

Sheet S3
A1: Today/Tomorrow | B1: Next Few Days | C1: This Week | D1: Next Week & After

Sheet Projects
A1: Project Name | B1: Project Description | C1: Goal the project serves | D1: Notes (optional)
A2: Complete website | B2: Pick a template and build the pages within in it.

Sheet Goals
A1: Goal # | B1: Concise Description of the Goal | C1: Describe what it will look and feel like for you when the goal is achieved | D1: Timeframe to achieve goal | E1: Current projects serving this goal | I1: Helper Column (don't edit)
A2: 1 | B2: Grow the community to at least 500 people | C2: The community has 500 people, with many of them engaged, posting regularly, and sharing with others. I correspond with them regularly | D2: 1 year | E2: =COUNTIFS(Projects!C:C,I2) -> 0 | I2: =CONCATENATE(A2," - ",B2) -> 1 - Grow the community to at least 500 people
A3: 2 | I3: 2 -
A4: 3 | I4: 3 -
A5: 4 | I5: 4 -
I6: -
I7: -
I8: -
I9: -
I10: -
I11: -
I12: -
I13: -
I14: -
I15: -
I16: -
I17: -
I18: -
I19: -
I20: -
I21: -
I22: -
I23: -
I24: -
I25: -
I26: -
I27: -
I28: -
I29: -
I30: -
I31: -
I32: -
I33: -
I34: -
I35: -
I36: -
I37: -
I38: -
I39: -
I40: -
I41: -
I42: -
I43: -
I44: -
I45: -
I46: -
I47: -
I48: -
I49: -
I50: -
I51: -
I52: -
I53: -
I54: -
I55: -
I56: -
I57: -
I58: -
I59: -
I60: -
I61: -
I62: -
I63: -
I64: -
I65: -
I66: -
I67: -
I68: -
I69: -
I70: -
I71: -
I72: -
I73: -
I74: -
I75: -
I76: -
I77: -
I78: -
I79: -
I80: -
I81: -
I82: -
I83: -
I84: -
I85: -
I86: -
I87: -
I88: -
I89: -
I90: -
I91: -
I92: -
I93: -
I94: -
I95: -
I96: -
I97: -
I98: -
I99: -
I100: -
I101: -
I102: -
I103: -
I104: -
I105: -
I106: -
I107: -
I108: -
I109: -
I110: -
I111: -
I112: -
I113: -
I114: -
I115: -
I116: -
I117: -
I118: -

Sheet Guide to Extra Credit pts. (hidden)
A3: # of Items on card | B3: 2 | C3: 2 | D3: 3 | E3: 3 | F3: 4 | G3: 4 | H3: 5 | I3: 5 | J3: 6 | K3: 6 | L3: 7 | M3: 7 | N3: 8 | O3: 8 | P3: 9 | Q3: 9
A4: 1 | B4: 2 | C4: =B4/SUM(B$4:B$12) -> 0.4938271605 | D4: 3 | E4: =D4/SUM(D$4:D$12) -> 0.3846153846 | F4: 4 | G4: =F4/SUM(F$4:F$12) -> 0.32 | H4: 5 | I4: =H4/SUM(H$4:H$12) -> 0.2777777778 | J4: 6 | K4: =J4/SUM(J$4:J$12) -> 0.248447205 | L4: 7 | M4: =L4/SUM(L$4:L$12) -> 0.2314814815 | N4: 8 | O4: =N4/SUM(N$4:N$12) -> 0.2157497303 | P4: 9 | Q4: =P4/SUM(P$4:P$12) -> 0.2
A5: 2 | B5: 1 | C5: 0.2469135802 | D5: 2 | E5: 0.2564102564 | F5: 3 | G5: 0.24 | H5: 4 | I5: 0.2222222222 | J5: 5 | K5: 0.2070393375 | L5: 6 | M5: 0.1984126984 | N5: 7 | O5: 0.188781014 | P5: 8 | Q5: 0.1777777778
A6: 3 | B6: =C6*SUM(B4:B5) -> 0.15 | C6: 0.05 | D6: 1 | E6: 0.1282051282 | F6: 2 | G6: 0.16 | H6: 3 | I6: 0.1666666667 | J6: 4 | K6: 0.16563147 | L6: 5 | M6: 0.1653439153 | N6: 6 | O6: 0.1618122977 | P6: 7 | Q6: 0.1555555556
A7: 4 | B7: =C7*B$14 -> 0.15 | C7: 0.05 | D7: =E7*D$14 -> 0.3 | E7: 0.05 | F7: 1 | G7: 0.08 | H7: 2 | I7: 0.1111111111 | J7: 3 | K7: 0.1242236025 | L7: 4 | M7: 0.1322751323 | N7: 5 | O7: 0.1348435814 | P7: 6 | Q7: 0.1333333333
A8: 5 | B8: 0.15 | C8: 0.05 | D8: 0.3 | E8: 0.05 | F8: =G8*F$14 -> 0.5 | G8: 0.05 | H8: 1 | I8: 0.05555555556 | J8: 2 | K8: 0.08281573499 | L8: 3 | M8: 0.09920634921 | N8: 4 | O8: 0.1078748652 | P8: 5 | Q8: 0.1111111111
A9: 6 | B9: 0.15 | C9: 0.05 | D9: 0.3 | E9: 0.05 | F9: 0.5 | G9: 0.05 | H9: =I9*H$14 -> 0.75 | I9: 0.05 | J9: 1 | K9: 0.04140786749 | L9: 2 | M9: 0.06613756614 | N9: 3 | O9: 0.08090614887 | P9: 4 | Q9: 0.08888888889
A10: 7 | B10: 0.15 | C10: 0.05 | D10: 0.3 | E10: 0.05 | F10: 0.5 | G10: 0.05 | H10: 0.75 | I10: 0.05 | J10: =K10*J$14 -> 1.05 | K10: 0.05 | L10: 1 | M10: 0.03306878307 | N10: 2 | O10: 0.05393743258 | P10: 3 | Q10: 0.06666666667
A11: 8 | B11: 0.15 | C11: 0.05 | D11: 0.3 | E11: 0.05 | F11: 0.5 | G11: 0.05 | H11: 0.75 | I11: 0.05 | J11: 1.05 | K11: 0.05 | L11: =M11*L$14 -> 1.12 | M11: 0.04 | N11: 1 | O11: 0.02696871629 | P11: 2 | Q11: 0.04444444444
A12: 9 | B12: 0.15 | C12: 0.05 | D12: 0.3 | E12: 0.05 | F12: 0.5 | G12: 0.05 | H12: 0.75 | I12: 0.05 | J12: 1.05 | K12: 0.05 | L12: 1.12 | M12: 0.04 | N12: =O12*N$14 -> 1.08 | O12: 0.03 | P12: 1 | Q12: 0.02222222222
A14: Total | B14: 3 | D14: 6 | F14: 10 | H14: 15 | J14: 21 | L14: 28 | N14: 36 | P14: 45
A15: Max points | B15: =SUM(B4:B12) -> 4.05 | D15: =SUM(D4:D12) -> 7.8 | F15: =SUM(F4:F12) -> 12.5 | H15: =SUM(H4:H12) -> 18 | J15: =SUM(J4:J12) -> 24.15 | L15: =SUM(L4:L12) -> 30.24 | N15: =SUM(N4:N12) -> 37.08 | P15: =SUM(P4:P12) -> 45
A16: Max score | B16: =B15/B14 -> 1.35 | D16: =D15/D14 -> 1.3 | F16: =F15/F14 -> 1.25 | H16: =H15/H14 -> 1.2 | J16: =J15/J14 -> 1.15 | L16: =L15/L14 -> 1.08 | N16: =N15/N14 -> 1.03 | P16: =P15/P14 -> 1
